[Event "Masters Tournament (MTO)"]
[Site "Biel, Switzerland"]
[Date "2026.07.20"]
[Round "7.31"]
[White "Monteverde, Jonathan"]
[Black "Joly, Fabrice"]
[Result "1-0"]
[TimeControl "100+30+30sec/move"]
[WhiteTitle "-"]
[BlackTitle "-"]
[WhiteFideId "1314580"]
[BlackFideId "612235"]
[WhiteElo "2098"]
[BlackElo "1907"]

1. d4 {[%clk 01:34:59]} {[%emt 00:06:00]} Nf6 {[%clk 01:39:50]} {[%emt
00:01:10]} 2. c4 {[%clk 01:35:01]} {[%emt 00:00:28]} c5 {[%clk 01:40:05]}
{[%emt 00:00:16]} 3. d5 {[%clk 01:35:20]} {[%emt 00:00:10]} b5 {[%clk
01:40:28]} {[%emt 00:00:08]} 4. cxb5 {[%clk 01:35:45]} {[%emt 00:00:05]} a6
{[%clk 01:40:51]} {[%emt 00:00:07]} 5. f3 {[%clk 01:36:08]} {[%emt 00:00:07]}
g6 {[%clk 01:39:50]} {[%emt 00:01:30]} 6. e4 {[%clk 01:36:20]} {[%emt
00:00:18]} Bg7 {[%clk 01:39:51]} {[%emt 00:00:30]} 7. a4 {[%clk 01:33:59]}
{[%emt 00:02:50]} O-O {[%clk 01:38:59]} {[%emt 00:01:22]} 8. Na3 {[%clk
01:33:50]} {[%emt 00:00:39]} e6 {[%clk 01:38:18]} {[%emt 00:01:12]} 9. d6
{[%clk 01:17:13]} {[%emt 00:17:06]} Ne8 {[%clk 01:38:02]} {[%emt 00:00:46]} 10.
Ne2 {[%clk 01:07:01]} {[%emt 00:10:42]} f5 {[%clk 01:36:50]} {[%emt 00:01:42]}
11. Nc3 {[%clk 00:59:41]} {[%emt 00:07:50]} Bb7 {[%clk 01:19:23]} {[%emt
00:17:58]} 12. exf5 {[%clk 00:50:06]} {[%emt 00:10:04]} Rxf5 {[%clk 01:17:08]}
{[%emt 00:02:45]} 13. Be3 {[%clk 00:48:08]} {[%emt 00:02:28]} Qh4+ {[%clk
00:56:23]} {[%emt 00:21:15]} 14. Bf2 {[%clk 00:46:09]} {[%emt 00:02:29]} Qb4
{[%clk 00:54:44]} {[%emt 00:02:09]} 15. Qd2 {[%clk 00:43:04]} {[%emt 00:03:35]}
Nxd6 {[%clk 00:52:02]} {[%emt 00:03:12]} 16. Bd3 {[%clk 00:38:27]} {[%emt
00:05:07]} Re5+ {[%clk 00:38:37]} {[%emt 00:13:55]} 17. Be2 {[%clk 00:38:03]}
{[%emt 00:00:53]} Nf5 {[%clk 00:36:57]} {[%emt 00:02:11]} 18. f4 {[%clk
00:16:17]} {[%emt 00:22:17]} Bh6 {[%clk 00:27:44]} {[%emt 00:09:43]} 19. Nc2
{[%clk 00:09:50]} {[%emt 00:06:56]} Qxf4 {[%clk 00:21:40]} {[%emt 00:06:34]} 20.
Qxf4 {[%clk 00:10:07]} {[%emt 00:00:13]} Bxf4 {[%clk 00:22:00]} {[%emt
00:00:09]} 21. O-O {[%clk 00:10:13]} {[%emt 00:00:25]} Ne3 {[%clk 00:20:41]}
{[%emt 00:01:49]} 22. Nxe3 {[%clk 00:10:27]} {[%emt 00:00:16]} Bxe3 {[%clk
00:21:07]} {[%emt 00:00:04]} 23. Bxe3 {[%clk 00:06:37]} {[%emt 00:04:20]} Rxe3
{[%clk 00:20:47]} {[%emt 00:00:50]} 24. Rf4 {[%clk 00:06:39]} {[%emt 00:00:28]}
Re5 {[%clk 00:09:04]} {[%emt 00:12:13]} 25. g4 {[%clk 00:05:55]} {[%emt
00:01:14]} axb5 {[%clk 00:08:16]} {[%emt 00:01:19]} 26. Bxb5 {[%clk 00:06:10]}
{[%emt 00:00:15]} Nc6 {[%clk 00:08:03]} {[%emt 00:00:43]} 27. Raf1 {[%clk
00:06:23]} {[%emt 00:00:17]} Rd8 {[%clk 00:07:58]} {[%emt 00:00:34]} 28. Ne4
{[%clk 00:04:15]} {[%emt 00:02:38]} Nd4 {[%clk 00:06:10]} {[%emt 00:02:19]} 29.
Nd6 {[%clk 00:04:06]} {[%emt 00:00:38]} Rb8 {[%clk 00:04:39]} {[%emt 00:02:01]}
30. Rf7 {[%clk 00:02:02]} {[%emt 00:02:35]} Bc6 {[%clk 00:04:07]} {[%emt
00:01:02]} 31. Re7 {[%clk 00:01:19]} {[%emt 00:01:12]} Rf8 {[%clk 00:03:22]}
{[%emt 00:01:15]} 32. Nf7 {[%clk 00:00:58]} {[%emt 00:00:51]} Nf5 {[%clk
00:01:11]} {[%emt 00:02:41]} 33. Nxe5 {[%clk 00:00:42]} {[%emt 00:00:46]} Nxe7
{[%clk 00:01:33]} {[%emt 00:00:08]} 34. Rxf8+ {[%clk 00:00:45]} {[%emt
00:00:26]} Kxf8 {[%clk 00:01:59]} {[%emt 00:00:05]} 35. Nxd7+ {[%clk 00:01:08]}
{[%emt 00:00:08]} Kg7 {[%clk 00:00:41]} {[%emt 00:01:47]} 36. Bxc6 {[%clk
00:00:51]} {[%emt 00:00:47]} Nxc6 {[%clk 00:01:07]} {[%emt 00:00:05]} 37. Nxc5
{[%clk 00:01:15]} {[%emt 00:00:05]} Kf7 {[%clk 00:01:28]} {[%emt 00:00:09]} 38.
Kf2 {[%clk 00:01:02]} {[%emt 00:00:44]} Kf6 {[%clk 00:01:09]} {[%emt 00:00:49]}
39. Ke3 {[%clk 00:00:43]} {[%emt 00:00:48]} Ne5 {[%clk 00:01:11]} {[%emt
00:00:29]} 40. b4 {[%clk 00:00:36]} {[%emt 00:00:37]} Nxg4+ {[%clk 00:01:14]}
{[%emt 00:00:27]} 41. Kf4 {[%clk 00:27:29]} {[%emt 00:03:36]} h5 {[%clk
00:22:54]} {[%emt 00:08:50]} 42. a5 {[%clk 00:19:01]} {[%emt 00:08:57]} g5+
{[%clk 00:20:42]} {[%emt 00:02:43]} 43. Ke4 {[%clk 00:19:19]} {[%emt 00:00:12]}
Ke7 {[%clk 00:19:12]} {[%emt 00:02:00]} 44. a6 {[%clk 00:19:31]} {[%emt
00:00:19]} Nf6+ {[%clk 00:19:06]} {[%emt 00:00:35]} 45. Ke5 {[%clk 00:19:45]}
{[%emt 00:00:16]} Nd5 {[%clk 00:19:08]} {[%emt 00:00:29]} 46. a7 {[%clk
00:19:57]} {[%emt 00:00:17]} Nb6 {[%clk 00:18:16]} {[%emt 00:01:22]} 47. Na4
{[%clk 00:16:16]} {[%emt 00:04:11]} Na8 {[%clk 00:16:28]} {[%emt 00:02:18]} 48.
b5 {[%clk 00:16:38]} {[%emt 00:00:08]} Kd8 {[%clk 00:15:01]} {[%emt 00:01:57]}
49. b6 {[%clk 00:16:56]} {[%emt 00:00:13]} Kc8 {[%clk 00:15:28]} {[%emt
00:00:03]} 50. Kxe6 {[%clk 00:17:17]} {[%emt 00:00:09]} Kb7 {[%clk 00:15:26]}
{[%emt 00:00:32]} 51. Kf5 {[%clk 00:17:37]} {[%emt 00:00:10]} 1-0

[Event "Masters Tournament (MTO)"]
[Site "Biel, Switzerland"]
[Date "2026.07.20"]
[Round "7.32"]
[White "Iafelice, Vincenzo"]
[Black "Scherler, Julius"]
[Result "1-0"]
[TimeControl "100+30+30sec/move"]
[WhiteTitle "-"]
[BlackTitle "-"]
[WhiteFideId "810541"]
[BlackFideId "1337947"]
[WhiteElo "2086"]
[BlackElo "1941"]

1. e4 {[%clk 01:40:57]} {[%emt 00:00:02]} c6 {[%clk 01:40:37]} {[%emt
00:00:23]} 2. Nf3 {[%clk 01:40:59]} {[%emt 00:00:28]} d5 {[%clk 01:40:59]}
{[%emt 00:00:08]} 3. d3 {[%clk 01:41:18]} {[%emt 00:00:11]} g6 {[%clk
01:33:13]} {[%emt 00:08:16]} 4. e5 {[%clk 01:41:34]} {[%emt 00:00:13]} d4
{[%clk 01:23:55]} {[%emt 00:09:48]} 5. c3 {[%clk 01:30:24]} {[%emt 00:11:41]}
c5 {[%clk 01:19:41]} {[%emt 00:04:45]} 6. Bf4 {[%clk 01:25:25]} {[%emt
00:05:28]} Nc6 {[%clk 01:14:54]} {[%emt 00:05:18]} 7. Nbd2 {[%clk 01:24:35]}
{[%emt 00:01:19]} Bg7 {[%clk 01:09:42]} {[%emt 00:05:43]} 8. h3 {[%clk
01:13:46]} {[%emt 00:11:19]} Qc7 {[%clk 01:01:19]} {[%emt 00:08:53]} 9. Qe2
{[%clk 01:07:04]} {[%emt 00:07:12]} dxc3 {[%clk 00:43:03]} {[%emt 00:18:46]} 10.
bxc3 {[%clk 01:07:29]} {[%emt 00:00:06]} Qa5 {[%clk 00:42:12]} {[%emt
00:01:20]} 11. Rc1 {[%clk 00:58:49]} {[%emt 00:09:09]} Qxa2 {[%clk 00:33:59]}
{[%emt 00:08:44]} 12. Qe3 {[%clk 00:58:19]} {[%emt 00:00:59]} b6 {[%clk
00:24:00]} {[%emt 00:10:31]} 13. d4 {[%clk 00:52:54]} {[%emt 00:05:55]} Qa3
{[%clk 00:13:46]} {[%emt 00:10:44]} 14. Nc4 {[%clk 00:45:46]} {[%emt 00:07:37]}
cxd4 {[%clk 00:14:11]} {[%emt 00:00:05]} 15. Nxd4 {[%clk 00:46:10]} {[%emt
00:00:06]} Qc5 {[%clk 00:14:28]} {[%emt 00:00:13]} 16. Qe4 {[%clk 00:41:32]}
{[%emt 00:05:07]} Nxd4 {[%clk 00:07:20]} {[%emt 00:07:39]} 17. cxd4 {[%clk
00:40:58]} {[%emt 00:01:04]} 1-0

[Event "Masters Tournament (MTO)"]
[Site "Biel, Switzerland"]
[Date "2026.07.20"]
[Round "7.33"]
[White "Morrison, Joseph"]
[Black "Corbat, Philippe"]
[Result "0-1"]
[TimeControl "100+30+30sec/move"]
[WhiteTitle "-"]
[BlackTitle "-"]
[WhiteFideId "479535"]
[BlackFideId "1304496"]
[WhiteElo "2048"]
[BlackElo "1893"]

1. e4 {[%clk 01:40:56]} {[%emt 00:00:03]} d5 {[%clk 01:40:20]} {[%emt
00:00:41]} 2. exd5 {[%clk 01:40:39]} {[%emt 00:00:47]} Nf6 {[%clk 01:40:41]}
{[%emt 00:00:08]} 3. d4 {[%clk 01:40:39]} {[%emt 00:00:30]} Qxd5 {[%clk
01:40:48]} {[%emt 00:00:24]} 4. c4 {[%clk 01:38:44]} {[%emt 00:02:25]} Qe4+
{[%clk 01:39:58]} {[%emt 00:01:20]} 5. Be3 {[%clk 01:36:50]} {[%emt 00:02:24]}
e5 {[%clk 01:36:28]} {[%emt 00:04:00]} 6. Nc3 {[%clk 01:32:46]} {[%emt
00:04:34]} Bb4 {[%clk 01:35:43]} {[%emt 00:01:15]} 7. Qa4+ {[%clk 01:28:00]}
{[%emt 00:05:15]} Nc6 {[%clk 01:36:00]} {[%emt 00:00:13]} 8. d5 {[%clk
01:26:27]} {[%emt 00:02:04]} Bxc3+ {[%clk 01:36:06]} {[%emt 00:00:24]} 9. bxc3
{[%clk 01:26:56]} {[%emt 00:00:01]} Nxd5 {[%clk 01:34:57]} {[%emt 00:01:38]} 10.
Qb3 {[%clk 01:16:25]} {[%emt 00:11:01]} Nxe3 {[%clk 01:33:05]} {[%emt
00:02:22]} 11. fxe3 {[%clk 01:16:41]} {[%emt 00:00:15]} Qxe3+ {[%clk 01:32:19]}
{[%emt 00:01:16]} 12. Be2 {[%clk 01:16:36]} {[%emt 00:00:34]} O-O {[%clk
01:31:22]} {[%emt 00:01:28]} 13. Rd1 {[%clk 01:14:22]} {[%emt 00:02:44]} e4
{[%clk 01:28:41]} {[%emt 00:03:10]} 14. Rd2 {[%clk 01:06:00]} {[%emt 00:08:53]}
Ne5 {[%clk 01:25:16]} {[%emt 00:03:55]} 15. Kd1 {[%clk 01:00:40]} {[%emt
00:05:50]} Nd3 {[%clk 01:23:16]} {[%emt 00:02:29]} 16. Bxd3 {[%clk 01:00:35]}
{[%emt 00:00:36]} exd3 {[%clk 01:23:34]} {[%emt 00:00:12]} 17. Nf3 {[%clk
01:00:17]} {[%emt 00:00:47]} Bg4 {[%clk 01:22:47]} {[%emt 00:01:17]} 18. Rf1
{[%clk 00:59:38]} {[%emt 00:01:10]} Rfe8 {[%clk 01:18:11]} {[%emt 00:05:06]} 19.
Kc1 {[%clk 00:56:55]} {[%emt 00:03:13]} Bxf3 {[%clk 01:15:44]} {[%emt
00:02:56]} 20. Rxf3 {[%clk 00:53:44]} {[%emt 00:03:42]} Qg1+ {[%clk 01:08:43]}
{[%emt 00:07:30]} 21. Rd1 {[%clk 00:52:53]} {[%emt 00:01:21]} d2+ {[%clk
00:57:48]} {[%emt 00:11:25]} 22. Kc2 {[%clk 00:51:45]} {[%emt 00:01:39]} Re1
{[%clk 00:55:56]} {[%emt 00:02:21]} 23. Qxb7 {[%clk 00:49:23]} {[%emt
00:02:52]} Rf8 {[%clk 00:52:49]} {[%emt 00:03:38]} 24. Rxd2 {[%clk 00:37:08]}
{[%emt 00:12:45]} Rc1+ {[%clk 00:51:21]} {[%emt 00:01:57]} 25. Kb3 {[%clk
00:29:12]} {[%emt 00:08:27]} Rb1+ {[%clk 00:41:45]} {[%emt 00:10:06]} 26. Rb2
{[%clk 00:29:35]} {[%emt 00:00:07]} Rxb2+ {[%clk 00:42:05]} {[%emt 00:00:10]}
27. Kxb2 {[%clk 00:30:04]} {[%emt 00:00:01]} Qxg2+ {[%clk 00:42:20]} {[%emt
00:00:15]} 28. Kb3 {[%clk 00:29:59]} {[%emt 00:00:35]} Qxh2 {[%clk 00:41:59]}
{[%emt 00:00:51]} 29. Qxa7 {[%clk 00:29:39]} {[%emt 00:00:51]} c5 {[%clk
00:39:57]} {[%emt 00:02:30]} 30. Ka3 {[%clk 00:27:10]} {[%emt 00:02:59]} h5
{[%clk 00:38:49]} {[%emt 00:01:36]} 31. Rf5 {[%clk 00:23:48]} {[%emt 00:03:54]}
Qh3 {[%clk 00:36:09]} {[%emt 00:03:11]} 32. Rxc5 {[%clk 00:22:18]} {[%emt
00:02:00]} Qxc3+ {[%clk 00:34:31]} {[%emt 00:02:07]} 33. Ka4 {[%clk 00:22:45]}
{[%emt 00:00:03]} Qc2+ {[%clk 00:28:22]} {[%emt 00:06:39]} 34. Kb5 {[%clk
00:21:35]} {[%emt 00:01:41]} Qb2+ {[%clk 00:27:25]} {[%emt 00:01:26]} 35. Kc6
{[%clk 00:21:45]} {[%emt 00:00:20]} h4 {[%clk 00:22:58]} {[%emt 00:04:57]} 36.
Rh5 {[%clk 00:16:54]} {[%emt 00:05:20]} Qg2+ {[%clk 00:19:48]} {[%emt
00:03:40]} 37. Kb5 {[%clk 00:15:03]} {[%emt 00:02:22]} Ra8 {[%clk 00:13:09]}
{[%emt 00:07:09]} 38. Qd4 {[%clk 00:14:10]} {[%emt 00:01:19]} Qxa2 {[%clk
00:10:17]} {[%emt 00:03:26]} 39. Rxh4 {[%clk 00:08:33]} {[%emt 00:06:07]} Qa5+
{[%clk 00:07:41]} {[%emt 00:03:07]} 40. Kc6 {[%clk 00:08:59]} {[%emt 00:00:04]}
Rc8+ {[%clk 00:05:49]} {[%emt 00:02:21]} 41. Kb7 {[%clk 00:08:17]} {[%emt
00:01:09]} Qa8+ {[%clk 00:06:04]} {[%emt 00:00:18]} 42. Kb6 {[%clk 00:08:33]}
{[%emt 00:00:15]} Rc6+ {[%clk 00:06:18]} {[%emt 00:00:16]} 0-1

[Event "Masters Tournament (MTO)"]
[Site "Biel, Switzerland"]
[Date "2026.07.20"]
[Round "7.34"]
[White "Heitmann, Erik"]
[Black "Lumsdon, Andrew"]
[Result "1-0"]
[TimeControl "100+30+30sec/move"]
[WhiteTitle "-"]
[BlackTitle "-"]
[WhiteFideId "34608940"]
[BlackFideId "1308840"]
[WhiteElo "1949"]
[BlackElo "2033"]

1. d4 {[%clk 01:40:59]} {[%emt 00:33:22]} g6 {[%clk 01:40:30]} {[%emt
00:00:30]} 2. c4 {[%clk 01:41:19]} {[%emt 00:00:11]} Bg7 {[%clk 01:40:53]}
{[%emt 00:00:06]} 3. Nc3 {[%clk 01:41:26]} {[%emt 00:00:23]} d6 {[%clk
01:41:10]} {[%emt 00:00:13]} 4. e4 {[%clk 01:41:25]} {[%emt 00:00:31]} Nd7
{[%clk 01:41:34]} {[%emt 00:00:06]} 5. f3 {[%clk 01:41:46]} {[%emt 00:00:09]}
c6 {[%clk 01:41:28]} {[%emt 00:00:36]} 6. Nge2 {[%clk 01:42:12]} {[%emt
00:00:04]} e5 {[%clk 01:41:40]} {[%emt 00:00:17]} 7. d5 {[%clk 01:42:40]}
{[%emt 00:00:04]} c5 {[%clk 01:42:03]} {[%emt 00:00:07]} 8. Be3 {[%emt
00:05:20]} f5 {[%clk 01:37:14]} 9. Qd2 {[%clk 01:42:26]} {[%emt 00:01:11]} f4
{[%clk 01:36:29]} {[%emt 00:01:15]} 10. Bf2 {[%clk 01:42:53]} {[%emt 00:00:04]}
Bh6 {[%clk 01:31:22]} {[%emt 00:05:35]} 11. h4 {[%clk 01:40:47]} {[%emt
00:02:37]} Ndf6 {[%clk 01:31:21]} {[%emt 00:00:30]} 12. a3 {[%clk 01:38:07]}
{[%emt 00:03:10]} Qa5 {[%clk 01:28:46]} {[%emt 00:03:06]} 13. Nc1 {[%clk
01:36:42]} {[%emt 00:01:55]} a6 {[%clk 01:28:38]} {[%emt 00:00:38]} 14. Qd3
{[%clk 01:29:45]} {[%emt 00:07:28]} Bd7 {[%clk 01:27:59]} {[%emt 00:01:07]} 15.
b4 {[%clk 01:29:48]} {[%emt 00:00:28]} cxb4 {[%clk 01:21:46]} {[%emt 00:06:43]}
16. Nb3 {[%clk 01:29:11]} {[%emt 00:01:07]} Qc7 {[%clk 01:20:06]} {[%emt
00:02:09]} 17. axb4 {[%clk 01:29:34]} {[%emt 00:00:06]} b6 {[%clk 01:20:29]}
{[%emt 00:00:09]} 18. c5 {[%clk 01:18:30]} {[%emt 00:11:35]} bxc5 {[%clk
01:15:33]} {[%emt 00:05:25]} 19. bxc5 {[%clk 01:17:13]} {[%emt 00:01:48]} dxc5
{[%clk 01:06:09]} {[%emt 00:09:54]} 20. Nxc5 {[%clk 01:05:27]} {[%emt
00:12:15]} a5 {[%clk 00:58:34]} {[%emt 00:08:04]} 21. Nb5 {[%clk 00:56:35]}
{[%emt 00:09:23]} Bxb5 {[%clk 00:56:46]} {[%emt 00:02:19]} 22. Qxb5+ {[%clk
00:56:58]} {[%emt 00:00:05]} Nd7 {[%clk 00:57:07]} {[%emt 00:00:09]} 23. d6
{[%clk 00:53:44]} {[%emt 00:03:45]} Qc8 {[%clk 00:56:32]} {[%emt 00:01:04]} 24.
Bc4 {[%clk 00:34:55]} {[%emt 00:19:19]} Ngf6 {[%clk 00:50:58]} {[%emt
00:06:03]} 25. Nxd7 {[%clk 00:34:04]} {[%emt 00:01:23]} Nxd7 {[%clk 00:50:15]}
{[%emt 00:01:12]} 26. Qd5 {[%clk 00:31:23]} {[%emt 00:03:12]} Bf8 {[%clk
00:42:13]} {[%emt 00:08:32]} 27. O-O {[%clk 00:25:35]} {[%emt 00:06:18]} Bxd6
{[%clk 00:34:13]} {[%emt 00:08:30]} 28. Rfd1 {[%clk 00:25:23]} {[%emt
00:00:42]} Bc5 {[%clk 00:26:12]} {[%emt 00:08:31]} 29. Bb5 {[%clk 00:22:29]}
{[%emt 00:03:24]} Bxf2+ {[%clk 00:20:51]} {[%emt 00:05:51]} 30. Kxf2 {[%clk
00:22:57]} {[%emt 00:00:02]} Ra7 {[%clk 00:19:54]} {[%emt 00:01:28]} 31. Qxe5+
{[%clk 00:19:10]} {[%emt 00:04:17]} Kf7 {[%clk 00:20:09]} {[%emt 00:00:12]} 32.
Rxd7+ {[%clk 00:14:19]} {[%emt 00:05:19]} Rxd7 {[%clk 00:18:14]} 33. Bxd7
{[%clk 00:14:47]} {[%emt 00:02:31]} Qxd7 {[%clk 00:10:44]} {[%emt 00:08:00]} 34.
Qxh8 {[%clk 00:15:01]} {[%emt 00:00:15]} Ke6 {[%clk 00:11:06]} {[%emt
00:00:08]} 35. Qg8+ {[%clk 00:15:16]} {[%emt 00:00:16]} Kf6 {[%clk 00:11:27]}
{[%emt 00:00:09]} 36. e5+ {[%clk 00:13:31]} {[%emt 00:02:15]} Kf5 {[%clk
00:09:30]} {[%emt 00:02:26]} 37. Qf8+ {[%clk 00:13:50]} {[%emt 00:00:11]} Ke6
{[%clk 00:09:56]} {[%emt 00:00:05]} 38. Qf6+ {[%clk 00:14:09]} {[%emt
00:00:10]} 1-0

[Event "Masters Tournament (MTO)"]
[Site "Biel, Switzerland"]
[Date "2026.07.20"]
[Round "7.35"]
[White "Aryan, Goyal"]
[Black "Fattori Dittmar, Luca"]
[Result "1-0"]
[TimeControl "100+30+30sec/move"]
[WhiteTitle "-"]
[BlackTitle "-"]
[WhiteFideId "366108825"]
[BlackFideId "34678883"]
[WhiteElo "2029"]
[BlackElo "1840"]

1. e4 {[%clk 01:40:37]} {[%emt 00:00:21]} e6 {[%clk 01:40:20]} {[%emt
00:00:42]} 2. d4 {[%clk 01:39:50]} {[%emt 00:01:16]} d5 {[%clk 01:40:32]}
{[%emt 00:00:18]} 3. Nd2 {[%clk 01:40:02]} {[%emt 00:00:18]} c5 {[%clk
01:40:50]} {[%emt 00:00:13]} 4. Ngf3 {[%clk 01:40:27]} {[%emt 00:00:05]} cxd4
{[%clk 01:40:34]} {[%emt 00:00:47]} 5. Nxd4 {[%clk 01:40:41]} {[%emt 00:00:15]}
Nf6 {[%clk 01:39:29]} {[%emt 00:01:35]} 6. exd5 {[%clk 01:40:39]} {[%emt
00:00:32]} Qxd5 {[%clk 01:39:25]} {[%emt 00:00:34]} 7. Nb5 {[%clk 01:35:39]}
{[%emt 00:05:30]} Qd8 {[%clk 01:39:13]} {[%emt 00:00:42]} 8. Nc4 {[%clk
01:35:03]} {[%emt 00:01:05]} Qxd1+ {[%clk 01:38:27]} {[%emt 00:01:16]} 9. Kxd1
{[%clk 01:34:32]} {[%emt 00:01:01]} Na6 {[%clk 01:38:54]} {[%emt 00:00:04]} 10.
Ncd6+ {[%clk 01:32:36]} {[%emt 00:02:26]} Bxd6 {[%clk 01:38:14]} {[%emt
00:01:10]} 11. Nxd6+ {[%clk 01:33:05]} {[%emt 00:00:01]} Ke7 {[%clk 01:38:36]}
{[%emt 00:00:08]} 12. Nxc8+ {[%clk 01:32:13]} {[%emt 00:01:22]} Raxc8 {[%clk
01:39:01]} {[%emt 00:00:05]} 13. Bxa6 {[%clk 01:28:09]} {[%emt 00:04:34]} bxa6
{[%clk 01:39:27]} {[%emt 00:00:04]} 14. c3 {[%clk 01:28:28]} {[%emt 00:00:11]}
Rhd8+ {[%clk 01:39:40]} {[%emt 00:00:17]} 15. Ke2 {[%clk 01:27:31]} {[%emt
00:01:26]} Nd5 {[%clk 01:39:06]} {[%emt 00:01:05]} 16. Bd2 {[%clk 01:27:06]}
{[%emt 00:00:53]} Rc4 {[%clk 01:37:34]} {[%emt 00:02:03]} 17. g3 {[%clk
01:24:11]} {[%emt 00:03:24]} a5 {[%clk 01:33:09]} {[%emt 00:04:56]} 18. Rhc1
{[%clk 01:23:21]} {[%emt 00:01:20]} h6 {[%clk 01:32:23]} {[%emt 00:01:17]} 19.
f3 {[%clk 01:20:25]} {[%emt 00:03:25]} Rdc8 {[%clk 01:24:01]} {[%emt 00:08:53]}
20. b3 {[%clk 01:12:30]} {[%emt 00:08:24]} R4c5 {[%clk 01:24:17]} {[%emt
00:00:15]} 21. c4 {[%clk 01:11:22]} {[%emt 00:01:38]} Nb4 {[%clk 01:24:45]}
{[%emt 00:00:02]} 22. a3 {[%clk 01:01:38]} {[%emt 00:10:13]} Re5+ {[%clk
01:24:23]} {[%emt 00:00:52]} 23. Be3 {[%clk 00:50:44]} {[%emt 00:11:23]} Nc6
{[%clk 01:24:50]} {[%emt 00:00:04]} 24. Kf2 {[%clk 00:50:47]} {[%emt 00:00:28]}
g5 {[%clk 01:20:39]} {[%emt 00:04:41]} 25. Rab1 {[%clk 00:48:56]} {[%emt
00:02:21]} Rf5 {[%clk 01:20:36]} {[%emt 00:00:32]} 26. Rc3 {[%clk 00:37:18]}
{[%emt 00:12:09]} Ne5 {[%clk 01:19:04]} {[%emt 00:02:02]} 27. Bxa7 {[%clk
00:35:14]} {[%emt 00:02:34]} Rd8 {[%clk 01:18:11]} {[%emt 00:01:23]} 28. Ke2
{[%clk 00:34:43]} {[%emt 00:01:01]} g4 {[%clk 01:18:27]} {[%emt 00:00:14]} 29.
fxg4 {[%clk 00:32:12]} {[%emt 00:03:01]} Nxg4 {[%clk 01:18:52]} {[%emt
00:00:05]} 30. h3 {[%clk 00:32:05]} {[%emt 00:00:36]} Re5+ {[%clk 01:19:02]}
{[%emt 00:00:21]} 31. Be3 {[%clk 00:31:53]} {[%emt 00:00:41]} Nf6 {[%clk
01:19:28]} {[%emt 00:00:04]} 32. Rd3 {[%clk 00:29:01]} {[%emt 00:03:22]} Ne4
{[%clk 01:19:52]} {[%emt 00:00:06]} 33. Rxd8 {[%clk 00:27:38]} {[%emt
00:01:54]} Nc3+ {[%clk 01:19:55]} {[%emt 00:00:26]} 34. Kd3 {[%clk 00:26:17]}
{[%emt 00:01:49]} Nxb1 {[%clk 01:20:17]} {[%emt 00:00:10]} 35. Rc8 {[%clk
00:24:47]} {[%emt 00:01:58]} Nxa3 {[%clk 01:19:48]} {[%emt 00:01:01]} 36. Rc5
{[%clk 00:24:30]} {[%emt 00:00:47]} Kd6 {[%clk 01:18:38]} {[%emt 00:01:40]} 37.
Rxe5 {[%clk 00:24:40]} {[%emt 00:00:21]} Kxe5 {[%clk 01:19:01]} {[%emt
00:00:06]} 38. Bc1 {[%clk 00:24:52]} {[%emt 00:00:17]} Nxc4 {[%clk 01:17:30]}
{[%emt 00:02:03]} 39. bxc4 {[%clk 00:24:40]} {[%emt 00:00:42]} h5 {[%clk
01:17:45]} {[%emt 00:00:15]} 40. Bf4+ {[%clk 00:24:49]} {[%emt 00:00:20]} Kf5
{[%clk 01:18:11]} {[%emt 00:00:04]} 41. c5 {[%clk 00:24:47]} {[%emt 00:00:32]}
e5 {[%clk 01:18:36]} {[%emt 00:00:06]} 42. c6 {[%clk 00:24:28]} {[%emt
00:00:49]} exf4 {[%clk 01:19:01]} {[%emt 00:00:04]} 43. c7 {[%clk 00:24:47]}
{[%emt 00:00:12]} fxg3 {[%clk 01:19:24]} {[%emt 00:00:06]} 1-0